fUST/lending_fUST_20260316
["ID","MTS","AMOUNT","RATE_DAILY","PERIOD"]
[408456811,1773669965684,151.0,0.0001,120]
[408456812,1773670008125,151.0,0.0001,120]
[408456818,1773670042038,151.0,0.0001,120]
[408456821,1773670076681,151.0,0.0001,120]
[408456822,1773670107662,151.0,0.0001,120]
[408456823,1773670152173,151.0,0.0001,120]
[408456827,1773670186834,151.0,0.0001,120]
[408456828,1773670203903,160.31,2e-05,2]
[408456829,1773670225964,151.0,0.0001,120]
[408456871,1773670232458,-1071.458,2.156e-05,2]
[408456874,1773670232470,-327.0,2.156e-05,2]
[408456981,1773670238713,-3601.542,2.156e-05,2]
[408456982,1773670238723,-214.34302298,2.178e-05,2]
[408456983,1773670238733,-160.31,2.2e-05,2]
[408456984,1773670238742,-58.97987773,5.649e-05,2]
[408456985,1773670238753,-4136.17019957,5.649e-05,2]
[408456986,1773670238764,-804.8499227,5.649e-05,2]
[408456987,1773670238774,-2634.16294931,5.752e-05,2]
[408456988,1773670238783,-663.46,5.79e-05,3]
[408456989,1773670238793,-5777.16832326,5.852e-05,2]
[408456990,1773670238802,-511.35880473,5.952e-05,2]
[408457011,1773670241008,-512.77059311,5.892e-05,2]
[408457063,1773670243799,-4487.22940689,5.892e-05,2]
[408457064,1773670243808,-5902.91388257,5.952e-05,2]
[408457065,1773670243818,-7612.44520377,6e-05,2]
[408457066,1773670243827,-7051.37705143,6.152e-05,2]
[408457067,1773670243837,-295.012896,6.981e-05,2]
[408457068,1773670243847,-50000.0,6.981e-05,2]
[408457069,1773670243856,-261.3214003,6.991e-05,2]
[408457070,1773670243866,-300.0,7.443e-05,2]
[408457071,1773670243875,-500.0,7.443e-05,2]
[408457072,1773670243884,-424.29556314,8.351e-05,2]
[408457073,1773670243893,-416.9208899,8.351e-05,2]
[408457074,1773670243902,-455.76341085,8.353e-05,2]
[408457075,1773670243912,-258.24777403,8.37e-05,2]
[408457076,1773670243921,-500.0,8.37e-05,2]
[408457077,1773670243931,-500.0,8.37e-05,2]
[408457078,1773670243940,-313.97234064,8.37e-05,2]
[408457079,1773670243949,-660840.30215828,8.371e-05,2]
[408457080,1773670243961,-14697.28648016,8.371e-05,2]
[408457082,1773670243988,-4093.49178929,8.371e-05,2]
[408457083,1773670244000,-7567.26609949,8.371e-05,2]
[408457084,1773670244012,-4903.9550138,8.371e-05,2]
[408457085,1773670244024,-9848.56580408,8.371e-05,2]
[408457086,1773670244035,-920.34923436,8.371e-05,2]
[408457094,1773670246563,-9324.2403483,8.371e-05,2]
[408457095,1773670246624,-526.89286096,8.371e-05,2]
[408457096,1773670246648,-1098.92497976,8.371e-05,2]
[408457125,1773670265671,151.0,0.0001,120]
[408457126,1773670297000,151.0,0.0001,120]
[408457127,1773670327375,151.0,0.0001,120]
[408457128,1773670362580,151.0,0.0001,120]
[408457129,1773670392248,151.0,0.0001,120]
[408457130,1773670425439,151.0,0.0001,120]
[408457131,1773670467509,151.0,0.0001,120]
[408457132,1773670517406,151.0,0.0001,120]
[408457133,1773670557641,151.0,0.0001,120]
[408457134,1773670602194,151.0,0.0001,120]
[408457135,1773670647465,151.0,0.0001,120]
[408457136,1773670687425,151.0,0.0001,120]
[408457137,1773670724916,151.0,0.0001,120]
[408457138,1773670755486,151.0,0.0001,120]
[408457139,1773670786633,151.0,0.0001,120]
[408457141,1773670824870,151.0,0.0001,120]
[408457142,1773670867457,151.0,0.0001,120]
[408457144,1773670898938,151.0,0.0001,120]
[408457145,1773670936624,151.0,0.0001,120]
[408457146,1773670966884,151.0,0.0001,120]
[408457147,1773671007288,151.0,0.0001,120]
[408457148,1773671054894,151.0,0.0001,120]
[408457149,1773671096087,151.0,0.0001,120]
[408457154,1773671135298,151.0,0.0001,120]
[408457160,1773671176639,151.0,0.0001,120]
[408457163,1773671218027,151.0,0.0001,120]
[408457169,1773671257295,151.0,0.0001,120]
[408457171,1773671296948,151.0,0.0001,120]
[408457172,1773671337234,151.0,0.0001,120]
[408457194,1773671367356,151.0,0.0001,120]
[408457195,1773671402750,160.02,2e-05,2]
[408457196,1773671406998,151.0,0.0001,120]
[408457228,1773671431640,-5000.0,6.187e-05,2]
[408457230,1773671431649,-163.76,6.25e-05,2]
[408457242,1773671431756,-1565.56645304,6.25e-05,2]
[408457314,1773671438381,-5000.0,6.187e-05,2]
[408457315,1773671438393,-3270.67354696,6.25e-05,2]
[408457316,1773671438405,-509.0,6.25e-05,2]
[408457317,1773671438417,-177.98456375,8.2e-05,2]
[408457318,1773671438428,-234.76390206,8.2e-05,2]
[408457319,1773671438443,-224.72230158,8.2e-05,2]
[408457320,1773671438455,-239.63717962,8.2e-05,2]
[408457321,1773671438468,-170894.5632892,8.33e-05,2]
[408457322,1773671438483,-50000.0,8.347e-05,2]
[408457323,1773671438495,-500.0,8.35e-05,2]
[408457324,1773671438506,-1267.1711967,8.66e-05,2]
[408457325,1773671438519,-530.0570937,9.027e-05,2]
[408457326,1773671438528,-554.72340048,0.0001,2]
[408457327,1773671438537,-3173.82108919,0.0001,30]
[408457328,1773671438545,-205.424,0.0001,2]
[408457329,1773671438554,-5413.66339405,0.00010216,120]
[408457330,1773671438562,-281.80936298,0.0001043,2]
[408457331,1773671438619,-272.9140375,0.0001043,2]
[408457332,1773671438629,-2264.44746002,0.00010497,2]
[408457333,1773671438639,-172.11644841,0.00010591,2]
[408457363,1773671441009,-1222.88355159,0.00010591,2]
[408457365,1773671441018,-640.0,0.00010591,2]
[408457367,1773671441028,-734.0,0.00010591,2]
[408457369,1773671441037,-183.0,0.00010591,2]
[408457370,1773671441047,-438.0,0.00010591,2]
[408457371,1773671441056,-536.451,0.00010591,2]
[408457372,1773671441066,-493.22211606,0.00010859,2]
[408457373,1773671441079,-61.50128442,0.00010859,2]
[408457374,1773671441088,-1347.16,0.00010959,2]
[408457375,1773671441097,-554.72340048,0.00011289,7]
[408457376,1773671441106,-309.0,0.000115,2]
[408457377,1773671441115,-2347.52647451,0.00012164,2]
[408457378,1773671441127,-7652.47352549,0.00012164,2]
[408457379,1773671441136,-1969.14932424,0.00012528,2]
[408457380,1773671441147,-13411.22427576,0.00012528,2]
[408457381,1773671441156,-2833.79200918,0.000129,2]
[408457382,1773671441166,-2833.79200916,0.00013138,2]
[408457383,1773671441421,-800.0,0.00013537,4]
[408457384,1773671441436,-600.0,0.00013555,2]
[408457385,1773671441446,-1395.0,0.00013591,2]
[408457386,1773671441456,-191.413,0.00013591,2]
[408457387,1773671441466,-734.0,0.00013591,2]
[408457388,1773671441475,-183.0,0.00013591,2]
[408457389,1773671441489,-438.0,0.00013591,2]
[408457390,1773671441499,-438.0,0.00013591,2]
[408457391,1773671441508,-500.0,0.00013685,2]
[408457392,1773671441517,-500.0,0.00013692,2]
[408457393,1773671441528,-500.0,0.00013692,2]
[408457394,1773671441537,-500.22338978,0.00013692,2]
[408457395,1773671441547,-500.0,0.00013698,2]
[408457396,1773671441556,-500.0,0.00013698,2]
[408457397,1773671441566,-500.0,0.00013698,2]
[408457398,1773671441576,-500.0,0.00013698,2]
[408457399,1773671441586,-500.0,0.00013698,2]
[408457400,1773671441597,-44.44306699,0.00013698,2]
[408457401,1773671441638,-455.55693301,0.00013698,2]
[408457402,1773671441647,-97.94689599,0.00013698,2]
[408457403,1773671441660,-402.05310401,0.00013698,2]
[408457404,1773671441669,-500.0,0.00013698,2]
[408457405,1773671441679,-500.0,0.00013698,2]
[408457406,1773671441689,-500.0,0.00013698,2]
[408457407,1773671441698,-362.48633326,0.00013698,2]
[408457408,1773671441707,-168.60243313,0.00013698,2]
[408457409,1773671441719,-331.39756687,0.00013698,2]
[408457410,1773671441728,-500.0,0.00013698,2]
[408457411,1773671441744,-500.0,0.00013698,2]
[408457412,1773671441753,-168.01486542,0.00013698,2]
[408457413,1773671441763,-500.0,0.00013698,2]
[408457414,1773671441773,-500.0,0.00013698,2]
[408457415,1773671441782,-500.0,0.00013698,2]
[408457416,1773671441792,-500.0,0.00013698,2]
[408457417,1773671441801,-500.0,0.00013698,2]
[408457418,1773671441816,-500.00234878,0.00013698,2]
[408457419,1773671441826,-188.48117493,0.00013698,2]
[408457435,1773671442981,-311.51882507,0.00013698,2]
[408457436,1773671442994,-302.18217365,0.00013698,2]
[408457437,1773671443004,-530.07814252,0.00013698,2]
[408457438,1773671443014,-625.44880355,0.00013698,2]
[408457439,1773671443023,-500.0,0.00013699,2]
[408457440,1773671443032,-500.0,0.00013699,2]
[408457441,1773671443041,-180.0360072,0.00013699,2]
[408457442,1773671443051,-1000.0,0.00013699,2]
[408457443,1773671443060,-1000.0,0.00013699,2]
[408457444,1773671443070,-152.0,0.00013699,2]
[408457445,1773671443079,-152.0,0.00013699,2]
[408457446,1773671443089,-152.0,0.00013699,2]
[408457447,1773671443099,-152.0,0.00013699,2]
[408457448,1773671443109,-152.0,0.00013699,2]
[408457449,1773671443119,-283.74998577,0.000137,2]
[408457457,1773671445856,-4082.66504357,0.00013561,2]
[408457458,1773671445866,-14.75001423,0.000137,2]
[408457459,1773671445876,-658.6671699,0.00013962,2]
[408457460,1773671445885,-445.43,0.00013971,2]
[408457461,1773671445895,-245.62,0.00013971,2]
[408457462,1773671445903,-445.43,0.00013971,2]
[408457463,1773671445912,-500.0,0.00013971,14]
[408457464,1773671445922,-245.62,0.00013971,2]
[408457465,1773671445931,-500.0,0.00013971,10]
[408457466,1773671445940,-500.0,0.00013971,14]
[408457467,1773671445949,-245.62,0.00013971,2]
[408457468,1773671445959,-500.0,0.00013971,10]
[408457469,1773671445968,-200.0,0.00013971,2]
[408457470,1773671445978,-445.43,0.00013971,2]
[408457471,1773671445989,-245.62,0.00013971,2]
[408457472,1773671445998,-245.62,0.00013971,2]
[408457473,1773671446008,-200.0,0.00013971,2]
[408457474,1773671446017,-151.0,0.00014,2]
[408457475,1773671446027,-321.0,0.00014031,2]
[408457476,1773671446036,-417.32095356,0.00014086,2]
[408457477,1773671446045,-236.11838186,0.000144,5]
[408457478,1773671446055,-151.0,0.000144,2]
[408457479,1773671446064,-1442.18434,0.00014416,2]
[408457480,1773671446074,-151.0,0.000145,2]
[408457481,1773671446083,-163.11930023,0.0001452,2]
[408457482,1773671446092,-1442.18434,0.00014594,2]
[408457483,1773671446101,-244.80550261,0.00014718,2]
[408457484,1773671446111,-1442.18434,0.00014772,2]
[408457485,1773671446120,-151.0,0.000148,2]
[408457486,1773671446129,-599.13191429,0.000149,2]
[408457487,1773671446139,-2146.0,0.000149,2]
[408457488,1773671446148,-151.0,0.000149,2]
[408457489,1773671446157,-218.18260272,0.00014904,3]
[408457490,1773671446166,-720.0,0.0001491,2]
[408457491,1773671446175,-358.26174302,0.0001495,2]
[408457492,1773671446187,-1083.92259698,0.0001495,2]
[408457493,1773671446196,-1145.92740302,0.00015,2]
[408457494,1773671446207,-285.05645482,0.00015,2]
[408457495,1773671447978,151.0,0.0001,120]
[408457496,1773671496750,151.0,0.0001,120]
[408457497,1773671534894,151.0,0.0001,120]
[408457498,1773671565480,151.0,0.0001,120]
[408457499,1773671597137,151.0,0.0001,120]
[408457500,1773671637883,151.0,0.0001,120]
[408457501,1773671677571,151.0,0.0001,120]
[408457502,1773671708302,151.0,0.0001,120]
[408457503,1773671746086,151.0,0.0001,120]
[408457504,1773671792921,151.0,0.0001,120]
[408457505,1773671835424,151.0,0.0001,120]
[408457506,1773671877070,151.0,0.0001,120]
[408457507,1773671915866,151.0,0.0001,120]
[408457508,1773671945875,151.0,0.0001,120]
[408457509,1773671977382,151.0,0.0001,120]
[408457510,1773672016637,151.0,0.0001,120]
[408457511,1773672056673,151.0,0.0001,120]
[408457512,1773672087010,151.0,0.0001,120]
[408457514,1773672136828,151.0,0.0001,120]
[408457515,1773672175336,151.0,0.0001,120]
[408457516,1773672216476,151.0,0.0001,120]
[408457517,1773672248831,151.0,0.0001,120]
[408457518,1773672284921,151.0,0.0001,120]
[408457519,1773672315753,151.0,0.0001,120]
[408457520,1773672356646,151.0,0.0001,120]
[408457530,1773672388036,151.0,0.0001,120]
[408457532,1773672436364,151.0,0.0001,120]
[408457542,1773672467390,151.0,0.0001,120]
[408457543,1773672502687,151.0,0.0001,120]
[408457544,1773672537810,151.0,0.0001,120]
[408457545,1773672586652,151.0,0.0001,120]
[408457546,1773672602790,160.02,2e-05,2]
[408457547,1773672625745,151.0,0.0001,120]
[408457583,1773672631773,-4935.246198,0.00010479,2]
[408457584,1773672631785,-64.753802,0.00010479,2]
[408457586,1773672631795,-568.0,0.00010585,2]
[408457588,1773672631804,-97.236198,0.00011131,2]
[408457589,1773672631839,-665.05,0.00011131,2]
[408457635,1773672637932,-1423.713802,0.00011131,2]
[408457637,1773672637941,-800.01,0.0001284,4]
[408457639,1773672637951,-15380.3736,0.00013662,2]
[408457641,1773672637960,-500.0,0.00013699,2]
[408457643,1773672637969,-500.0,0.00013699,2]
[408457645,1773672637979,-180.03780794,0.00013699,2]
[408457647,1773672637989,-1000.0,0.00013699,2]
[408457649,1773672637999,-980.80511332,0.00013699,2]
[408457651,1773672638008,-1000.0,0.00013699,2]
[408457653,1773672638017,-164.34,0.00013699,2]
[408457655,1773672638026,-2511.335016,0.0001372,2]
[408457657,1773672638035,-2125.34400687,0.00014031,2]
[408457659,1773672638044,-621.393,0.00014131,2]
[408457661,1773672638055,-1258.3237781,0.0001422,2]
[408457663,1773672638065,-12941.20105938,0.000148,2]
[408457665,1773672638074,-500.0,0.00014873,2]
[408457667,1773672638083,-472.99804417,0.00014897,2]
[408457669,1773672638092,-500.0,0.00014897,2]
[408457671,1773672638101,-500.0,0.00014897,2]
[408457673,1773672638110,-500.0,0.00014897,2]
[408457675,1773672638119,-500.0,0.00014897,2]
[408457677,1773672638129,-500.0,0.00014897,2]
[408457679,1773672638139,-500.0,0.00014897,2]
[408457681,1773672638148,-500.0,0.00014897,2]
[408457683,1773672638158,-500.0,0.00014897,2]
[408457685,1773672638167,-500.0,0.00014897,2]
[408457687,1773672638176,-500.0,0.00014897,2]
[408457689,1773672638185,-500.0,0.00014897,2]
[408457691,1773672638195,-500.0,0.00014897,2]
[408457693,1773672638204,-560.70949524,0.00014897,2]
[408457695,1773672638213,-500.0,0.00014897,2]
[408457697,1773672638222,-347.009321,0.00014897,2]
[408457698,1773672638232,-500.0,0.00014897,2]
[408457699,1773672638242,-500.0,0.00014897,2]
[408457700,1773672638251,-500.0,0.00014897,2]
[408457701,1773672638260,-500.0,0.00014897,2]
[408457702,1773672638269,-501.45209538,0.00014897,2]
[408457703,1773672638278,-500.0,0.00014897,2]
[408457704,1773672638288,-500.0,0.00014897,2]
[408457705,1773672638297,-202.00783346,0.00014899,2]
[408457706,1773672638306,-180.77344182,0.00014899,2]
[408457707,1773672638315,-246.57303626,0.00014899,2]
[408457708,1773672638325,-500.0,0.00014899,2]
[408457709,1773672638334,-419.78063845,0.00014899,2]
[408457710,1773672638343,-500.0,0.00014899,2]
[408457711,1773672638352,-19082.10477003,0.000149,2]
[408457712,1773672638364,-30542.74436907,0.000149,2]
[408457713,1773672638375,-4104.11748778,0.000149,2]
[408457714,1773672638386,-1918.707782,0.000149,2]
[408457715,1773672638403,-1466.50235886,0.000149,2]
[408457940,1773672643191,-4522.89878929,0.00014751,2]
[408457956,1773672645925,-477.10121071,0.00014751,2]
[408457957,1773672645934,-605.4932279,0.000149,2]
[408457958,1773672645946,-6864.1674737,0.000149,2]
[408457959,1773672645960,-5686.4571086,0.000149,2]
[408457960,1773672657198,151.0,0.0001,120]
[408457961,1773672695169,151.0,0.0001,120]
[408457964,1773672726120,151.0,0.0001,120]
[408457965,1773672757053,151.0,0.0001,120]
[408457966,1773672796103,151.0,0.0001,120]
[408457968,1773672842229,151.0,0.0001,120]
[408457969,1773672885900,151.0,0.0001,120]
[408457970,1773672917932,151.0,0.0001,120]
[408457971,1773672956862,151.0,0.0001,120]
[408457972,1773672988023,151.0,0.0001,120]
[408457973,1773673027126,151.0,0.0001,120]
[408457974,1773673067965,151.0,0.0001,120]
[408457975,1773673106035,151.0,0.0001,120]
[408457976,1773673148723,151.0,0.0001,120]
[408457977,1773673187614,151.0,0.0001,120]
[408457978,1773673222103,151.0,0.0001,120]
[408457979,1773673255264,151.0,0.0001,120]
[408457980,1773673287899,151.0,0.0001,120]
[408457981,1773673327068,151.0,0.0001,120]
[408457982,1773673366777,151.0,0.0001,120]
[408457983,1773673407053,151.0,0.0001,120]
[408457984,1773673446934,151.0,0.0001,120]
[408457985,1773673487537,151.0,0.0001,120]
[408457988,1773673527096,151.0,0.0001,120]
[408457990,1773673569128,151.0,0.0001,120]
[408457991,1773673616921,151.0,0.0001,120]
[408457995,1773673647174,151.0,0.0001,120]
[408457996,1773673687594,151.0,0.0001,120]
[408457997,1773673722408,151.0,0.0001,120]
[408457999,1773673758549,-240.0,9.9e-05,20]
[408458009,1773673766905,151.0,0.0001,120]
[408458020,1773673802480,152.0,2e-05,2]
[408458021,1773673805130,151.0,0.0001,120]
[408458075,1773673832072,-5000.0,0.00010479,2]
[408458077,1773673832082,-568.0,0.00010585,2]
[408458078,1773673832092,-243.0,0.0001113,2]
[408458081,1773673832102,-209.0,0.0001113,2]
[408458085,1773673832112,-321.04758741,0.00011131,2]
[408458091,1773673832123,-1066.95241259,0.00011131,2]
[408458095,1773673832133,-734.0,0.00011131,2]
[408458098,1773673832142,-183.0,0.00011131,2]
[408458101,1773673832151,-438.0,0.00011131,2]
[408458104,1773673832161,-78.04758741,0.00011506,2]
[408458107,1773673832172,-86.29241259,0.00011506,2]
[408458110,1773673832181,-1298.41605245,0.00012164,2]
[408458113,1773673832193,-8701.58394755,0.00012164,2]
[408458117,1773673832202,-1445.4,0.00012164,2]
[408458120,1773673832211,-168.11122,0.00012699,2]
[408458123,1773673832220,-168.11122,0.00012699,120]
[408458126,1773673832229,-172.323583,0.0001285,2]
[408458129,1773673832239,-165.2828673,0.000129,5]
[408458132,1773673832248,-151.0,0.00013,2]
[408458134,1773673832257,-151.0,0.000131,2]
[408458136,1773673832267,-151.0,0.000132,2]
[408458138,1773673832276,-151.0,0.000132,2]
[408458140,1773673832285,-1859.67600602,0.00013259,2]
[408458142,1773673832295,-78.11024755,0.00013261,2]
[408458144,1773673832307,-1389.35844879,0.00013261,2]
[408458146,1773673832316,-151.0,0.000133,2]
[408458148,1773673832326,-500.0,0.00013359,2]
[408458150,1773673832335,-500.0,0.00013359,2]
[408458152,1773673832345,-500.0,0.00013359,2]
[408458154,1773673832354,-337.11923316,0.00013359,2]
[408458253,1773673836580,151.0,0.0001,120]
[408458259,1773673838090,-162.88076684,0.00013359,2]
[408458260,1773673838100,-500.0,0.00013359,2]
[408458261,1773673838110,-500.0,0.00013359,2]
[408458262,1773673838119,-530.80260439,0.00013359,2]
[408458263,1773673838129,-500.0,0.00013359,2]
[408458264,1773673838138,-500.0,0.00013359,2]
[408458265,1773673838148,-500.0,0.00013359,2]
[408458266,1773673838157,-500.0,0.00013359,2]
[408458267,1773673838166,-500.0,0.00013359,2]
[408458268,1773673838176,-500.0,0.00013359,2]
[408458270,1773673838185,-232.68268213,0.00013359,2]
[408458272,1773673838195,-500.0,0.00013359,2]
[408458274,1773673838204,-500.0,0.00013359,2]
[408458275,1773673838214,-500.0,0.00013359,2]
[408458276,1773673838223,-500.0,0.00013359,2]
[408458277,1773673838232,-194.70006696,0.00013359,2]
[408458278,1773673838241,-379.65757202,0.00013359,2]
[408458279,1773673838250,-500.0,0.00013359,2]
[408458280,1773673838259,-500.0,0.00013359,2]
[408458281,1773673838269,-500.0,0.00013359,2]
[408458282,1773673838278,-500.0,0.00013359,2]
[408458283,1773673838287,-500.0,0.00013359,2]
[408458284,1773673838297,-500.0,0.00013359,2]
[408458285,1773673838306,-500.0,0.00013359,2]
[408458286,1773673838315,-500.0,0.00013359,2]
[408458287,1773673838325,-500.0,0.00013359,2]
[408458288,1773673838335,-500.0,0.00013359,2]
[408458289,1773673838344,-500.0,0.00013359,2]
[408458290,1773673838353,-500.0,0.00013359,2]
[408458291,1773673838363,-500.0,0.00013359,2]
[408458292,1773673838372,-38.55072679,0.00013359,2]
[408458293,1773673838384,-461.44927321,0.00013359,2]
[408458294,1773673838393,-500.0,0.00013359,2]
[408458295,1773673838402,-85.1989172,0.00013359,2]
[408458296,1773673838413,-414.8010828,0.00013359,2]
[408458297,1773673838422,-500.0,0.00013359,2]
[408458298,1773673838431,-500.0,0.00013359,2]
[408458300,1773673838441,-500.0,0.00013359,2]
[408458302,1773673838451,-500.0,0.00013359,2]
[408458303,1773673838460,-500.0,0.00013359,2]
[408458304,1773673838469,-500.0,0.00013359,2]
[408458305,1773673838478,-500.0,0.00013359,2]
[408458306,1773673838487,-163.52735619,0.00013359,2]
[408458307,1773673838497,-500.0,0.00013359,2]
[408458308,1773673838506,-500.0,0.00013359,2]
[408458309,1773673838515,-500.0,0.00013359,2]
[408458310,1773673838525,-500.0,0.00013359,2]
[408458311,1773673838535,-71.80196318,0.00013359,2]
[408458363,1773673840502,-471.26938999,0.00013327,2]
[408458368,1773673840541,-995.73061001,0.00013327,2]
[408458371,1773673840551,-123.60940488,0.00013359,2]
[408458651,1773673843264,-304.58863194,0.00013359,2]
[408458653,1773673843274,-500.0,0.00013359,2]
[408458655,1773673843283,-500.0,0.00013359,2]
[408458657,1773673843292,-500.0,0.00013359,2]
[408458659,1773673843301,-500.0,0.00013359,2]
[408458661,1773673843310,-500.0,0.00013359,2]
[408458663,1773673843319,-500.0,0.00013359,2]
[408458665,1773673843330,-500.0,0.00013359,2]
[408458667,1773673843339,-500.0,0.00013359,2]
[408458669,1773673843348,-500.0,0.00013359,2]
[408458671,1773673843357,-500.0,0.00013359,2]
[408458672,1773673843367,-500.0,0.00013359,2]
[408458673,1773673843376,-500.0,0.00013359,2]
[408458675,1773673843386,-500.0,0.00013359,2]
[408458677,1773673843395,-500.0,0.00013359,2]
[408458678,1773673843404,-500.0,0.00013359,2]
[408458679,1773673843414,-500.0,0.00013359,2]
[408458680,1773673843423,-250.0,0.00013359,2]
[408458681,1773673843433,-500.0,0.00013359,2]
[408458682,1773673843446,-500.0,0.00013359,2]
[408458683,1773673843463,-643.84644691,0.0001336,2]
[408458684,1773673843473,-68726.57393596,0.00013361,2]
[408458686,1773673844005,-1886.79515109,0.00013361,2]
[408458687,1773673844122,-3440.97879809,0.00013361,2]
[408458688,1773673844134,-3759.52690935,0.00013361,2]
[408458714,1773673846140,-4965.88408622,0.00013361,2]
[408458715,1773673846151,-14970.90944582,0.00013361,2]
[408458718,1773673875533,151.0,0.0001,120]
[408458720,1773673908051,151.0,0.0001,120]
[408458721,1773673945140,151.0,0.0001,120]
[408458722,1773673985701,151.0,0.0001,120]
[408458723,1773674017125,151.0,0.0001,120]
[408458725,1773674055481,151.0,0.0001,120]
[408458726,1773674097486,151.0,0.0001,120]
[408458728,1773674142396,151.0,0.0001,120]
[408458730,1773674176254,151.0,0.0001,120]
[408458731,1773674207073,151.0,0.0001,120]
[408458733,1773674255275,151.0,0.0001,120]
[408458734,1773674292411,151.0,0.0001,120]
[408458735,1773674337185,151.0,0.0001,120]
[408458737,1773674382424,151.0,0.0001,120]
[408458738,1773674402345,184.53,2e-05,2]
[408458739,1773674427480,151.0,0.0001,120]
[408458740,1773674472559,151.0,0.0001,120]
[408458741,1773674506657,151.0,0.0001,120]
[408458742,1773674555423,151.0,0.0001,120]
[408458743,1773674612075,151.0,0.0001,120]
[408458744,1773674642087,151.0,0.0001,120]
[408458745,1773674686838,151.0,0.0001,120]
[408458747,1773674727577,151.0,0.0001,120]
[408458748,1773674764852,151.0,0.0001,120]
[408458761,1773674805680,151.0,0.0001,120]
[408458765,1773674842502,151.0,0.0001,120]
[408458769,1773674885010,151.0,0.0001,120]
[408458770,1773674916747,151.0,0.0001,120]
[408458771,1773674958005,151.0,0.0001,120]
[408458784,1773674997366,151.0,0.0001,120]
[408458810,1773675032176,-5000.0,9.51e-05,2]
[408458812,1773675032186,-555.0,9.606e-05,2]
[408458814,1773675032195,-151.0,9.743e-05,2]
[408458816,1773675032206,-1564.79150523,9.9e-05,2]
[408458817,1773675032216,-300.0,9.976e-05,2]
[408458819,1773675032226,-281.58616873,9.976e-05,2]
[408458821,1773675032237,-918.41383127,9.976e-05,2]
[408458823,1773675032246,-300.0,9.978e-05,2]
[408458825,1773675032255,-300.0,9.978e-05,2]
[408458827,1773675032264,-3025.14332677,9.979e-05,2]
[408458830,1773675032275,-2487.94300038,9.979e-05,2]
[408458832,1773675032284,-181.15,0.0001,2]
[408458833,1773675032293,-1955.89002762,0.00010077,2]
[408458834,1773675032307,-368.41855183,0.00010077,2]
[408458835,1773675032318,-47675.69142055,0.00010077,2]
[408458837,1773675032327,-6116.53887944,0.00010079,2]
[408458839,1773675032335,-500.0,0.000101,2]
[408458840,1773675032344,-323.23467317,0.000101,2]
[408458841,1773675032354,-500.0,0.000101,2]
[408458842,1773675032363,-158.21297957,0.000101,2]
[408458843,1773675032373,-500.0,0.000101,2]
[408458844,1773675032382,-500.45716042,0.000101,2]
[408458845,1773675032391,-8.63597521,0.000101,2]
[408458906,1773675035032,151.0,0.0001,120]
[408458919,1773675038364,-500.0,0.00010099,2]